{"text_format":"3","workbook":"xlsx","n_sheets":1,"sheets":["zał. 1 do wniosku"],"not_rendered":{"images":1},"read":"whole","date_system":"1900"}

{"sheet":"zał. 1 do wniosku","index":0,"n_rows":45,"n_cols":6,"rows_kept":45,"merged":[[1,4,1,5],[4,0,4,1],[4,2,4,5],[5,0,5,1],[5,2,5,5],[41,0,41,3],[43,0,43,4],[44,0,44,4]]}
[]
[{"$nulls":4},"Załącznik nr 1a  do  Wniosku \no przyznanie grantu na prace przedwdrożeniowe w ramach projektu „Science4Business - Nauka dla Biznesu”"]
[]
[]
["Imię, nazwisko Lidera B+R"]
["Tytuł Grantu"]
[]
["L.p.","Nazwa kosztu","Wartość stawki jednostkowej*","Liczba stawki jednostkowej (szt.)","Kwota wydatków kwalifikowalnych*","Uzasadnienie / kalkulacja kosztu "]
[1,"Wynagrodzenia Personelu Projektu (max 75 000 / Grant)",{"v":117,"d":"117.00 zł"},{"$f":"SUM(D10:D14)","v":0},{"$f":"C9*D9","v":0}]
[null,"imie i nazwisko",{"v":117,"d":"117.00 zł"},null,{"$f":"C10*D10","v":0}]
[null,null,{"v":117,"d":"117.00 zł"},null,0]
[null,null,{"v":117,"d":"117.00 zł"},null,0]
[null,null,{"v":117,"d":"117.00 zł"},null,0]
[null,null,{"v":117,"d":"117.00 zł"},null,0]
[2,"Zakup środków trwałych (max. 4,5% budżetu)","nie dotyczy","nie dotyczy",{"$f":"SUM(E16:E18)","v":0}]
[{"$nulls":4},{"$f":"C16*D16","v":0}]
[{"$nulls":4},{"$f":"C17*D17","v":0}]
[{"$nulls":4},0]
[3,"Zakup/wynajem wyposażenia innego niż środki trwałe","nie dotyczy","nie dotyczy",{"$f":"SUM(E20:E22)","v":0}]
[{"$nulls":4},{"$f":"C20*D20","v":0}]
[{"$nulls":4},{"$f":"C21*D21","v":0}]
[{"$nulls":4},0]
[4,"Zakup materiałów i surowców oraz usług technicznych związanych z prototypowaniem (cięcie, projektowanie, spawanie, malowanie, skanowanie, wydruki 3D, transport i usługi kurierskie i inne usługi nieposiadające pierwiastka/charakteru twórczego) ","nie dotyczy","nie dotyczy",{"$f":"SUM(E24:E26)","v":0}]
[{"$nulls":4},{"$f":"C24*D24","v":0}]
[{"$nulls":4},{"$f":"C25*D25","v":0}]
[{"$nulls":4},0]
[5,"Usługi informatyczne i oprogramowanie, w tym np. zakup licencji, wdrażanie systemów do zarządzania własnością intelektualną, komercjalizacją i współpracą z gospodarką","nie dotyczy","nie dotyczy",{"$f":"SUM(E28:E30)","v":0}]
[{"$nulls":4},{"$f":"C28*D28","v":0}]
[{"$nulls":4},{"$f":"C29*D29","v":0}]
[{"$nulls":4},{"$f":"C30*D30","v":0}]
[6,"Usługi badawcze, doradcze, ekonomiczne i prawne, marketingowe ekspertyzy, opracowania, wyceny, analizy i raporty niezbędne do prawidłowej realizacji zadania","nie dotyczy","nie dotyczy",{"$f":"SUM(E32:E34)","v":0}]
[{"$nulls":4},{"$f":"C32*D32","v":0}]
[{"$nulls":4},{"$f":"C33*D33","v":0}]
[{"$nulls":4},0]
[7,"Ochrona patentowa ","nie dotyczy","nie dotyczy",{"$f":"SUM(E36:E38)","v":0}]
[{"$nulls":4},{"$f":"C36*D36","v":0}]
[{"$nulls":4},{"$f":"C37*D37","v":0}]
[{"$nulls":4},0]
[8,"DELEGACJE (udział w imprezie targowo-wystawienniczej w charakterze wystawcy, udział w misji gospodarczej lub innej imprezie/wydarzeniu którego celem jest promocja oferty jedn. naukowej dla gosp. i wzmocnienie współpracy w transferze technologii)","Wartość stawki jednostkowej*","Liczba stawek jednostkowych (l.osób delegowanych)",{"$f":"SUM(E40:E41)","v":0}]
[null,"Delegacje - POLSKA",{"v":1131,"d":"1,131.00 zł"},null,{"$f":"C40*D40","v":0}]
[null,"Delegacje - UE",{"v":5114,"d":"5,114.00 zł"},null,{"$f":"C41*D41","v":0}]
["SUMA",{"$nulls":3},{"$f":"SUM(E9+E15+E19+E23+E27+E31+E35+E39)","v":0}]
[]
[]
["* w przypadku nie planowania danych kosztów proszę wpisać wartość \"0\""]